fUST/lending_fUST_20240824
["ID","MTS","AMOUNT","RATE_DAILY","PERIOD"]
[335700784,1724448101246,2653.20660242,0.0001211,2]
[335700786,1724448109408,273.37336231,0.0001211,2]
[335700790,1724448138138,414.8430987,0.00014679,7]
[335700791,1724448165726,939.08236877,0.0001211,2]
[335700802,1724448241614,158.74359484,0.0001211,2]
[335700803,1724448243295,5604.19479331,0.0001211,2]
[335700804,1724448244987,377.32383277,0.0001211,2]
[335700805,1724448248095,2113.01506767,0.0001211,2]
[335700806,1724448248136,4725.95593576,0.0001211,2]
[335700807,1724448248687,3976.02720818,0.0001211,2]
[335700808,1724448251678,405.57310629,0.0001211,2]
[335700809,1724448256020,218.74217155,0.0001211,2]
[335700810,1724448262258,19519.27898842,0.0001211,2]
[335700816,1724448336365,-897.2598538,0.00012127,2]
[335700817,1724448336393,-250.0,0.00012741,2]
[335700818,1724448336416,-250.0,0.00012776,2]
[335700819,1724448336441,-250.0,0.0001281,2]
[335700820,1724448336465,-250.0,0.00012845,2]
[335700821,1724448336487,-250.0,0.0001288,2]
[335700822,1724448336510,-250.0,0.00012915,2]
[335700823,1724448336533,-250.0,0.0001295,2]
[335700824,1724448336555,-250.0,0.00012985,2]
[335700825,1724448336577,-2620.7931497,0.00013004,2]
[335700826,1724448336603,-250.0,0.0001302,2]
[335700827,1724448336627,-250.0,0.00013055,2]
[335700828,1724448336651,-250.0,0.0001309,2]
[335700829,1724448336674,-250.0,0.00013125,2]
[335700830,1724448336700,-250.0,0.0001316,2]
[335700831,1724448336723,-250.0,0.00013195,2]
[335700832,1724448336748,-250.0,0.0001323,2]
[335700833,1724448336773,-250.0,0.00013265,2]
[335700834,1724448336797,-250.0,0.000133,2]
[335700835,1724448336822,-250.0,0.00013334,2]
[335700836,1724448336845,-250.0,0.00013369,2]
[335700837,1724448336869,-250.0,0.00013404,2]
[335700838,1724448336891,-42427.98816131,0.00013596,2]
[335700839,1724448336914,-300.0,0.00013596,2]
[335700840,1724448336939,-2666.10312637,0.00013597,2]
[335700841,1724448336964,-2784.14206048,0.00013597,2]
[335700842,1724448336988,-8846.82343496,0.00013599,2]
[335700843,1724448337010,-9663.17336824,0.00013599,2]
[335700844,1724448337034,-2713.40505829,0.00013688,2]
[335700845,1724448337057,-7017.74354728,0.00013688,2]
[335700846,1724448337079,-358.17798233,0.00013697,2]
[335700847,1724448337100,-160.50654328,0.00013697,2]
[335700848,1724448337123,-3093.60860983,0.00013697,2]
[335700849,1724448337145,-2596.73329364,0.00013697,2]
[335700850,1724448337167,-2128.61939316,0.00013697,2]
[335700851,1724448337190,-535.06078951,0.00013697,2]
[335700852,1724448337213,-2167.07978808,0.00013697,2]
[335700853,1724448337236,-520.80380986,0.00013697,2]
[335700854,1724448337258,-303.97484667,0.00013698,2]
[335700855,1724448337280,-811.71027722,0.00013698,2]
[335700856,1724448337302,-210.32349268,0.00013698,2]
[335700857,1724448337324,-986.36191411,0.00013698,2]
[335700858,1724448337348,-210.32349268,0.00013698,2]
[335700859,1724448337371,-2283.38976069,0.00013698,3]
[335700860,1724448337394,-3000.0,0.00013699,2]
[335700861,1724448337432,-196.88638747,0.00013792,2]
[335700862,1724448337458,-155.18235923,0.00013792,2]
[335700863,1724448337481,-421.44575686,0.00013792,2]
[335700864,1724448337505,-301.66413705,0.00013792,2]
[335700865,1724448337528,-729.9682711,0.00013792,2]
[335700866,1724448337550,-405.57594711,0.00013792,2]
[335700867,1724448337574,-201.57395078,0.00013971,2]
[335700868,1724448337595,-154.74467129,0.00013971,2]
[335700869,1724448337617,-385.58223389,0.00013971,2]
[335700870,1724448337640,-900.8444614,0.00013971,2]
[335700871,1724448337661,-320.39554735,0.00013971,2]
[335700872,1724448337685,-491.51835346,0.00013971,2]
[335700873,1724448337707,-1766.94298382,0.00013971,2]
[335700874,1724448337727,-1648.9788962,0.00013971,2]
[335700875,1724448337750,-666.39967323,0.00013971,2]
[335700876,1724448337773,-182.42121049,0.00013971,2]
[335700877,1724448337794,-321.12771384,0.00013971,2]
[335700884,1724448358220,13871.45174131,0.0001211,2]
[335700889,1724448383985,267.34602619,0.0001211,2]
[335700894,1724448429219,-201.0533367,0.00013202,2]
[335700895,1724448429243,-303.97484667,0.00013688,2]
[335700896,1724448429263,-2143.43585731,0.00013688,2]
[335700897,1724448429285,-285.4487675,0.00013697,2]
[335700899,1724448429308,-2283.38976069,0.00013697,3]
[335700900,1724448429330,-1001.46796249,0.00013792,2]
[335700901,1724448429354,-42420.01613523,0.00013971,2]
[335700902,1724448429380,-181.6978145,0.00014247,2]
[335700903,1724448429404,-210.52055767,0.00014519,2]
[335700904,1724448429428,-49830.1044984,0.00014669,2]
[335700905,1724448429453,-202.08997549,0.00014679,2]
[335700906,1724448429475,-295.43620889,0.00014679,2]
[335700907,1724448429498,-2167.07978808,0.00014679,2]
[335700908,1724448429518,-811.71027722,0.00014679,2]
[335700909,1724448429539,-474.39129939,0.00014679,2]
[335700910,1724448429562,-9663.17336824,0.00014679,2]
[335700911,1724448429583,-811.71027722,0.00014679,2]
[335700912,1724448429604,-541.51832152,0.00014679,2]
[335700913,1724448429624,-329.09977402,0.00014858,2]
[335700914,1724448429645,-500.0,0.00015257,2]
[335700915,1724448429669,-500.0,0.00016059,2]
[335700916,1724448429690,-329.099774,0.00016116,2]
[335700917,1724448429713,-49830.1044984,0.00016203,2]
[335700918,1724448429735,-5570.25292169,0.00016213,2]
[335700919,1724448432162,-303.97484667,0.00013599,2]
[335700920,1724448432184,-154.79103211,0.00013792,2]
[335700921,1724448432204,-651.28939702,0.00014519,2]
[335700922,1724448432226,-17051.7433672,0.00016213,2]
[335700924,1724448440117,-2278.00371111,0.00016213,2]
[335700925,1724448440148,-2383.344627,0.00016213,2]
[335700926,1724448440179,-500.0,0.00016438,2]
[335700927,1724448440211,-500.0,0.00016862,2]
[335700928,1724448440242,-5474.24412683,0.00017002,2]
[335700929,1724448440275,-5474.24412683,0.00017292,2]
[335700930,1724448440306,-329.099774,0.00017374,2]
[335700931,1724448440340,-209.7,0.00017378,2]
[335700932,1724448440372,-5474.24412683,0.00017569,2]
[335700933,1724448440405,-395.090253,0.00017603,2]
[335700934,1724448440436,-532.768708,0.00017603,2]
[335700935,1724448440470,-209.7,0.00017617,2]
[335700936,1724448440502,-395.090253,0.00017823,2]
[335700937,1724448440534,-532.768708,0.00017823,2]
[335700938,1724448440566,-209.7,0.00017855,2]
[335700939,1724448440598,-150.112233,0.00018,2]
[335700940,1724448440629,-134929.42,0.00018,2]
[335700941,1724448440661,-5474.24412683,0.00018034,2]
[335700942,1724448440693,-395.090253,0.00018043,2]
[335700943,1724448440725,-532.768708,0.00018043,2]
[335700944,1724448440756,-500.0,0.00018064,2]
[335700945,1724448440788,-209.7,0.00018093,2]
[335700946,1724448440822,-5474.24412683,0.00018179,2]
[335700947,1724448440853,-395.090253,0.00018263,2]
[335700948,1724448440886,-532.768708,0.00018263,2]
[335700949,1724448440917,-209.7,0.00018332,2]
[335700950,1724448440949,-395.090253,0.00018483,2]
[335700951,1724448440982,-532.768708,0.00018483,2]
[335700952,1724448441017,-5474.24412683,0.0001856,2]
[335700953,1724448441051,-209.7,0.0001857,2]
[335700954,1724448441084,-150.112233,0.000186,2]
[335700955,1724448441116,-1000.0,0.00018612,2]
[335700956,1724448441149,-329.099774,0.00018632,2]
[335700957,1724448441181,-49830.1044984,0.00018648,2]
[335700958,1724448441211,-150.0,0.00018657,2]
[335700959,1724448441242,-522.0,0.00018657,2]
[335700960,1724448441275,-1416.0,0.00018657,2]
[335700961,1724448441296,-34208.0,0.00018657,2]
[335700962,1724448441317,-209.7,0.00018808,2]
[335700963,1724448441341,-5474.24412683,0.00018895,2]
[335700964,1724448441365,-198.35848078,0.00018989,2]
[335700965,1724448441390,-363.73145198,0.00018989,2]
[335700966,1724448441413,-500.0,0.00018989,2]
[335700967,1724448441755,-500.0,0.00018989,2]
[335700968,1724448441802,-500.0,0.00018989,2]
[335700969,1724448441823,-500.0,0.00018989,2]
[335700970,1724448441848,-500.0,0.00018989,2]
[335700971,1724448441869,-250.0,0.00018989,2]
[335700972,1724448441894,-500.0,0.00018989,2]
[335700973,1724448441917,-500.0,0.00018989,2]
[335700974,1724448441938,-500.0,0.00018989,2]
[335700975,1724448441960,-500.0,0.00018989,2]
[335700976,1724448441981,-348.70672128,0.00018989,2]
[335700977,1724448442006,-500.0,0.00018989,2]
[335700978,1724448442028,-500.0,0.00018989,2]
[335700979,1724448442053,-500.0,0.00018989,2]
[335700980,1724448442075,-159.83609485,0.00018989,2]
[335700981,1724448442096,-500.0,0.00018989,2]
[335700982,1724448442118,-500.0,0.00018989,2]
[335700983,1724448442140,-500.0,0.00018989,2]
[335700984,1724448442162,-500.0,0.00018989,2]
[335700985,1724448442184,-500.0,0.00018989,2]
[335700986,1724448442204,-500.0,0.00018989,2]
[335700987,1724448442225,-500.0,0.00018989,2]
[335700988,1724448442249,-500.0,0.00018989,2]
[335700989,1724448442270,-500.0,0.00018989,2]
[335700990,1724448442291,-500.0,0.00018989,2]
[335700991,1724448442313,-500.0,0.00018989,2]
[335700992,1724448442334,-300.0,0.00018989,2]
[335700993,1724448442357,-40888.65487479,0.0001899,2]
[335700994,1724448444088,-8941.44962361,0.0001899,2]
[335700995,1724448444110,-500.0,0.00019,7]
[335700996,1724448444131,-500.0,0.00019,7]
[335700997,1724448444152,-500.0,0.00019,7]
[335700998,1724448444171,-500.0,0.00019,7]
[335700999,1724448444193,-500.0,0.00019,7]
[335701000,1724448444213,-500.0,0.00019,7]
[335701001,1724448444235,-500.0,0.00019,7]
[335701002,1724448444260,-500.0,0.00019,7]
[335701003,1724448444282,-500.0,0.00019,7]
[335701004,1724448444302,-500.0,0.00019,7]
[335701005,1724448444322,-500.0,0.00019,7]
[335701006,1724448444343,-500.0,0.00019,7]
[335701007,1724448444364,-500.0,0.00019,7]
[335701008,1724448444388,-500.0,0.00019,7]
[335701009,1724448444410,-434.92,0.00019,7]
[335701010,1724448444431,-500.0,0.00019,7]
[335701011,1724448444454,-500.0,0.00019,7]
[335701012,1724448444475,-500.0,0.00019,7]
[335701013,1724448444495,-500.0,0.00019,7]
[335701014,1724448444519,-500.0,0.00019,7]
[335701015,1724448444542,-500.0,0.00019,7]
[335701016,1724448444563,-521.26,0.00019,7]
[335701017,1724448444584,-500.0,0.00019,7]
[335701018,1724448444605,-500.0,0.00019,7]
[335701019,1724448444628,-500.0,0.00019,7]
[335701020,1724448444651,-500.0,0.00019,7]
[335701021,1724448444674,-500.0,0.00019,7]
[335701022,1724448444695,-500.0,0.00019,7]
[335701023,1724448444973,-500.0,0.00019,7]
[335701024,1724448444996,-500.0,0.00019,7]
[335701025,1724448445017,-500.0,0.00019,7]
[335701026,1724448445039,-500.0,0.00019,7]
[335701027,1724448445060,-500.0,0.00019,7]
[335701028,1724448445082,-500.0,0.00019,7]
[335701029,1724448445103,-209.7,0.00019047,2]
[335701030,1724448445124,-5474.24412683,0.00019099,2]
[335701031,1724448445144,-165.630344,0.00019178,2]
[335701032,1724448445164,-251.0,0.00019178,2]
[335701033,1724448445184,-465.00025799,0.00019198,2]
[335701034,1724448445204,-150.112233,0.000192,2]
[335701035,1724448445224,-5474.24412683,0.0001923,2]
[335701036,1724448445244,-209.7,0.00019285,2]
[335701037,1724448445269,-500.0,0.00019468,2]
[335701038,1724448445289,-603.0,0.000195,2]
[335701039,1724448445309,-500.0,0.0001951,2]
[335701040,1724448445330,-953.84767115,0.00019512,2]
[335701041,1724448445350,-209.7,0.00019523,2]
[335701042,1724448445375,-5474.24412688,0.00019612,2]
[335701043,1724448445397,-11431.38885086,0.0001969,9]
[335701044,1724448445418,-150.112233,0.000197,2]
[335701045,1724448445438,-209.7,0.00019762,2]
[335701046,1724448445459,-207.7006306,0.00019784,2]
[335701047,1724448445479,-6796.88277396,0.0001988,2]
[335701048,1724448445500,-3022.00027491,0.00019889,2]
[335701049,1724448445520,-329.099774,0.0001989,2]
[335701050,1724448445540,-500.0,0.00019973,2]
[335701051,1724448445560,-500.0,0.00019973,2]
[335701052,1724448445580,-500.0,0.00019973,2]
[335701053,1724448445602,-36266.85069638,0.00019979,2]
[335701055,1724448453219,-197.34656623,0.00016113,2]
[335701056,1724448453550,-500.0,0.00019973,2]
[335701057,1724448453574,-13563.25380202,0.00019979,2]
[335701058,1724448453597,-151.0,0.0001998,2]
[335701059,1724448453618,-151.0,0.0001998,2]
[335701060,1724448453641,-151.0,0.0001998,2]
[335701061,1724448453666,-2582.095935,0.0001998,2]
[335701062,1724448453689,-2582.095935,0.0001998,2]
[335701063,1724448453712,-310.886007,0.0001998,2]
[335701064,1724448453735,-310.886007,0.0001998,2]
[335701065,1724448453759,-2303.444628,0.0001998,2]
[335701066,1724448453784,-2303.444628,0.0001998,2]
[335701067,1724448453808,-151.0,0.0001998,2]
[335701068,1724448453833,-891.350227,0.0001998,2]
[335701069,1724448453857,-891.350227,0.0001998,2]
[335701070,1724448453881,-20833.94981375,0.0001998,2]
[335701075,1724448521962,529.88200369,0.0001,2]
[335701088,1724448560113,-396.38973895,0.000123,2]
[335701089,1724448560135,-7934.36917182,0.000129,2]
[335701090,1724448560159,-300.0,0.00013999,2]
[335701091,1724448560179,-594.94258773,0.00014,4]
[335701092,1724448560200,-22299.64576315,0.00014,2]
[335701093,1724448560222,-684.087411,0.00014247,2]
[335701094,1724448560243,-423.46591337,0.00014519,2]
[335701095,1724448560266,-405.19865259,0.00014519,3]
[335701096,1724448560286,-1108.51365217,0.00014519,2]
[335701097,1724448568092,-1055.94260323,0.00014519,2]
[335701098,1724448568112,-420.0,0.00015399,2]
[335701238,1724448634814,-8876.5011327,0.00016653,2]
[335701239,1724448634824,-300.0,0.00016999,2]
[335701240,1724448634833,-9263.50196518,0.00017,2]
[335701241,1724448634842,-1837.6336055,0.00017999,2]
[335701242,1724448634851,-1416.0,0.00018657,2]
[335701243,1724448634861,-1667.05720672,0.00018657,2]
[335701244,1724448634873,-6244.29318893,0.00018657,2]
[335701245,1724448634885,-8165.60985724,0.00018657,2]
[335701248,1724448635027,-5319.344864,0.00018657,2]
[335701249,1724448635044,-1349.999989,0.00018657,2]
[335701265,1724448637917,-11461.69489411,0.00018657,2]
[335701266,1724448637927,-150.0,0.00018657,2]
[335701267,1724448637936,-522.0,0.00018657,2]
[335701268,1724448637945,-420.0,0.00018699,2]
[335701269,1724448637955,-12489.6081175,0.00018923,2]
[335701270,1724448637964,-12538.7865297,0.00019142,2]
[335701271,1724448637974,-251.0,0.00019178,2]
[335701272,1724448637983,-953.84767115,0.00019469,2]
[335701273,1724448637993,-603.0,0.000195,2]
[335701274,1724448638002,-9088.4896476,0.00019652,2]
[335701275,1724448638012,-1733.646516,0.0001998,2]
[335701276,1724448638021,-151.0,0.0001998,2]
[335701277,1724448638031,-1733.646516,0.0001998,2]
[335701278,1724448638040,-782.816159,0.0001998,2]
[335701280,1724448638049,-782.816159,0.0001998,2]
[335701282,1724448638058,-18282.73224612,0.0001998,2]
[335701283,1724448638810,-12617.2620343,0.0001998,2]
[335701284,1724448638823,-19689.04502585,0.0001998,2]
[335701285,1724448638835,-27691.89439969,0.0001998,2]
[335701286,1724448639066,-31360.68136469,0.0001998,2]
[335701318,1724448641943,-11827.976416,0.0001998,2]
[335701325,1724448642416,-1535.62155787,0.0001998,2]
[335701380,1724448643041,-10669.83641664,0.0001998,2]
[335701382,1724448643081,-275.03989442,0.0001998,2]
[335701410,1724448646769,-36401.276463,0.0001998,2]
[335701411,1724448646781,-2002.74062318,0.0001998,2]
[335701412,1724448646841,-2017.977627,0.0001998,2]
[335701413,1724448646872,-7282.32034724,0.0001998,2]
[335701414,1724448646881,-150.01,0.00019989,2]
[335701415,1724448646891,-8327.86942584,0.00019989,2]
[335701416,1724448646911,-498.70672128,0.00019989,2]
[335701417,1724448646920,-500.0,0.00019989,2]
[335701418,1724448646930,-500.0,0.00019989,2]
[335701419,1724448646940,-500.0,0.00019989,2]
[335701420,1724448646949,-225.0,0.00019989,2]
[335701421,1724448646959,-500.0,0.00019989,2]
[335701422,1724448646968,-500.0,0.00019989,2]
[335701423,1724448646978,-500.0,0.00019989,2]
[335701424,1724448646987,-500.0,0.00019989,2]
[335701425,1724448646997,-500.0,0.00019989,2]
[335701426,1724448647006,-500.0,0.00019989,2]
[335701427,1724448647015,-500.0,0.00019989,2]
[335701428,1724448647025,-500.0,0.00019989,2]
[335701429,1724448647034,-500.0,0.00019989,2]
[335701430,1724448647043,-500.0,0.00019989,2]
[335701431,1724448647053,-500.0,0.00019989,2]
[335701432,1724448647062,-500.0,0.00019989,2]
[335701433,1724448647074,-421.88526639,0.00019989,2]
[335701434,1724448647083,-500.0,0.00019989,2]
[335701435,1724448647092,-500.0,0.00019989,2]
[335701436,1724448647102,-450.0,0.00019989,2]
[335701437,1724448647111,-5715.69442543,0.0001999,9]
[335701438,1724448647120,-201496.41028819,0.0001999,2]
[335701439,1724448647131,-251.47809,0.0001999,2]
[335701440,1724448647142,-317.610212,0.0001999,2]
[335701441,1724448647151,-317.610212,0.0001999,2]
[335701442,1724448647162,-151.0,0.0001999,2]
[335701443,1724448647172,-160.7309,0.0001999,2]
[335701444,1724448647182,-160.7309,0.0001999,2]
[335701445,1724448647192,-152.031519,0.0001999,2]
[335701446,1724448647202,-731.561886,0.0001999,2]
[335701447,1724448647213,-731.561886,0.0001999,2]
[335701448,1724448647224,-151.0,0.0001999,2]
[335701449,1724448647233,-151.0,0.0001999,2]
[335701450,1724448647244,-151.0,0.0001999,2]
[335701451,1724448647256,-194.2992,0.0001999,2]
[335701452,1724448647265,-194.2992,0.0001999,2]
[335701453,1724448647274,-2582.095935,0.0001999,2]
[335701454,1724448647284,-2582.095935,0.0001999,2]
[335701455,1724448647293,-151.0,0.0001999,2]
[335701456,1724448647303,-310.886007,0.0001999,2]
[335701457,1724448647312,-310.886007,0.0001999,2]
[335701458,1724448647321,-2303.444628,0.0001999,2]
[335701459,1724448647330,-2303.444628,0.0001999,2]
[335701460,1724448647340,-240.590754,0.0001999,2]
[335701461,1724448647350,-891.350227,0.0001999,2]
[335701462,1724448647359,-891.350227,0.0001999,2]
[335701463,1724448647368,-151.0,0.0001999,2]
[335701464,1724448647379,-151.0,0.0001999,2]
[335701465,1724448647388,-151.0,0.0001999,2]
[335701466,1724448647401,-151.0,0.0001999,2]
[335701467,1724448647411,-151.0,0.0001999,2]
[335701468,1724448647421,-843.631678,0.0001999,2]
[335701469,1724448647436,-301.174866,0.0001999,2]
[335701470,1724448647445,-843.631678,0.0001999,2]
[335701471,1724448647454,-301.174866,0.0001999,2]
[335701472,1724448647464,-1299.050184,0.0001999,2]
[335701473,1724448647474,-1299.050184,0.0001999,2]
[335701474,1724448647483,-1733.646516,0.0001999,2]
[335701475,1724448647492,-151.0,0.0001999,2]
[335701476,1724448647502,-151.0,0.0001999,2]
[335701477,1724448647512,-1733.646516,0.0001999,2]
[335701478,1724448647522,-289.410447,0.0001999,2]
[335701479,1724448647532,-108992.642649,0.0001999,2]
[335701480,1724448647541,-2093.254802,0.0001999,2]
[335701481,1724448647551,-782.816159,0.0001999,2]
[335701482,1724448647560,-782.816159,0.0001999,2]
[335701483,1724448647569,-2093.254802,0.0001999,2]
[335701484,1724448647578,-284.225562,0.0001999,2]
[335701485,1724448647588,-284.225562,0.0001999,2]
[335701486,1724448647597,-66163.85595798,0.0001999,2]
[335701487,1724448647606,-406.255765,0.0001999,2]
[335701488,1724448647616,-406.255765,0.0001999,2]
[335701489,1724448647626,-21105.69606527,0.0002,2]
[335701490,1724448647635,-618.61705511,0.0002,15]
[335701491,1724448647647,-8934.09047555,0.0002,2]
[335701492,1724448647656,-300.78840012,0.0002,2]
[335701493,1724448647666,-174.721357,0.0002,2]
[335701494,1724448647676,-154.72922386,0.0002,2]
[335701495,1724448647686,-154.72922386,0.0002,2]
[335701496,1724448647695,-435.0,0.0002,2]
[335701497,1724448647704,-500.0,0.0002,2]
[335701498,1724448647714,-506.0,0.0002,2]
[335701499,1724448647724,-506.0,0.0002,2]
[335701500,1724448647734,-2000.0,0.0002,3]
[335701501,1724448647745,-3220.64,0.0002,2]
[335701502,1724448647754,-154.74467129,0.0002,2]
[335701503,1724448647764,-217.72373741,0.0002,2]
[335701504,1724448647773,-159.30870687,0.0002,2]
[335701505,1724448647783,-182.5,0.0002,2]
[335701506,1724448647793,-51884.72867519,0.0002,2]
[335701507,1724448647801,-10058.33309902,0.0002,2]
[335701508,1724448647811,-4292.93548413,0.0002,2]
[335701509,1724448647821,-150.112233,0.0002,2]
[335701510,1724448647831,-317.610212,0.0002,2]
[335701511,1724448647841,-317.610212,0.0002,2]
[335701512,1724448647850,-151.0,0.0002,2]
[335701513,1724448647860,-151.0,0.0002,2]
[335701514,1724448647869,-1799.994173,0.0002,2]
[335701515,1724448647879,-1799.994173,0.0002,2]
[335701516,1724448647889,-151.0,0.0002,2]
[335701517,1724448647899,-151.0,0.0002,2]
[335701518,1724448647909,-243.030192,0.0002,2]
[335701519,1724448647919,-243.030192,0.0002,2]
[335701520,1724448647930,-151.0,0.0002,2]
[335701521,1724448647939,-203.063632,0.0002,2]
[335701522,1724448647948,-255.42051,0.0002,2]
[335701523,1724448647958,-255.42051,0.0002,2]
[335701524,1724448647968,-152.50283,0.0002,2]
[335701525,1724448647978,-151.0,0.0002,2]
[335701526,1724448647988,-160.7309,0.0002,2]
[335701527,1724448647997,-160.7309,0.0002,2]
[335701528,1724448648007,-731.561886,0.0002,2]
[335701529,1724448648017,-731.561886,0.0002,2]
[335701530,1724448648028,-151.0,0.0002,2]
[335701531,1724448648038,-151.0,0.0002,2]
[335701532,1724448648048,-151.0,0.0002,2]
[335701533,1724448648058,-194.2992,0.0002,2]
[335701534,1724448648067,-194.2992,0.0002,2]
[335701535,1724448648077,-2582.095935,0.0002,2]
[335701536,1724448648087,-2582.095935,0.0002,2]
[335701537,1724448648096,-151.0,0.0002,2]
[335701538,1724448648106,-310.886007,0.0002,2]
[335701539,1724448648115,-310.886007,0.0002,2]
[335701540,1724448648125,-2303.444628,0.0002,2]
[335701541,1724448648135,-2303.444628,0.0002,2]
[335701542,1724448648145,-151.24291427,0.0002,2]
[335701543,1724448648157,-891.350227,0.0002,2]
[335701544,1724448648166,-891.350227,0.0002,2]
[335701545,1724448648175,-282.601544,0.0002,2]
[335701546,1724448648184,-209.7,0.0002,2]
[335701547,1724448648194,-151.0,0.0002,2]
[335701548,1724448648203,-151.0,0.0002,2]
[335701549,1724448648213,-151.0,0.0002,2]
[335701550,1724448648223,-150.0,0.0002,2]
[335701551,1724448648232,-151.0,0.0002,2]
[335701552,1724448648241,-843.631678,0.0002,2]
[335701553,1724448648252,-301.174866,0.0002,2]
[335701554,1724448648262,-843.631678,0.0002,2]
[335701555,1724448648271,-301.174866,0.0002,2]
[335701556,1724448648281,-1299.050184,0.0002,2]
[335701557,1724448648290,-1299.050184,0.0002,2]
[335701558,1724448648299,-1733.646516,0.0002,2]
[335701559,1724448648310,-151.0,0.0002,2]
[335701560,1724448648321,-151.0,0.0002,2]
[335701561,1724448648332,-1733.646516,0.0002,2]
[335701562,1724448648341,-2093.254802,0.0002,2]
[335701563,1724448648351,-782.816159,0.0002,2]
[335701564,1724448648360,-782.816159,0.0002,2]
[335701565,1724448648369,-2093.254802,0.0002,2]
[335701566,1724448648378,-284.225562,0.0002,2]
[335701567,1724448648388,-284.225562,0.0002,2]
[335701568,1724448648398,-12970.56791194,0.0002,2]
[335701582,1724448904893,634.64,0.00027,120]
[335701602,1724449474389,195.9,0.00027,120]
[335701603,1724449517991,154.7,0.00027,120]
[335701604,1724449538099,-627.18268575,0.00012985,2]
[335701609,1724449749153,-1813.10412628,0.00012779,2]
[335701610,1724449749180,-300.0,0.00012984,2]
[335701611,1724449749203,-200.43693464,0.00012985,2]
[335701612,1724449749227,-214.75801558,0.00012985,2]
[335701613,1724449749249,-3594.56006351,0.00012985,2]
[335701614,1724449749273,-4142.72437601,0.00012985,2]
[335701615,1724449749294,-7898.09278961,0.00012985,2]
[335701616,1724449749315,-154.71377951,0.00012985,2]
[335701617,1724449749340,-218.62299037,0.00012985,2]
[335701618,1724449749363,-320.30409158,0.00012989,2]
[335701619,1724449749385,-160.50654328,0.00012989,2]
[335701620,1724449749408,-258.20720256,0.00012991,2]
[335701621,1724449749434,-154.71377951,0.00012991,2]
[335701622,1724449749456,-8876.5011327,0.00013105,2]
[335701623,1724449749477,-521.54236624,0.00013596,2]
[335701624,1724449749498,-154.71377951,0.00013597,2]
[335701625,1724449749519,-2713.66408099,0.00013698,2]
[335701626,1724449749539,-1396.00306611,0.00013698,2]
[335701627,1724449749562,-646.0716477,0.00013698,2]
[335701628,1724449749583,-3000.0,0.00013699,2]
[335701629,1724449749604,-318.196695,0.00013699,2]
[335701630,1724449749625,-694.11289231,0.00013792,2]
[335701631,1724449749645,-248.29697074,0.00013792,2]
[335701632,1724449749668,-274.9204361,0.00013792,2]
[335701633,1724449749689,-155.61647953,0.00013792,2]
[335701634,1724449749914,-894.99754113,0.00013792,2]
[335701635,1724449749938,-243.69185787,0.00013792,2]
[335701636,1724449749963,-400.1912372,0.00013792,2]
[335701637,1724449749985,-196.7520803,0.00013792,2]
[335701638,1724449750005,-288.40254199,0.00013792,2]
[335701639,1724449750026,-309.39667648,0.00013792,2]
[335701640,1724449750048,-520.25072733,0.00013792,2]
[335701641,1724449750069,-178.56738232,0.00013792,2]
[335701642,1724449750092,-155.16708104,0.00013792,2]
[335701643,1724449750114,-154.71377951,0.00013792,2]
[335701644,1724449750136,-1879.6348238,0.00013808,2]
[335701645,1724449750157,-154.71377951,0.00013971,2]
[335701646,1724449750182,-154.71377951,0.00013971,2]
[335701647,1724449750203,-154.71377951,0.00013971,2]
[335701648,1724449750224,-500.0,0.00013971,2]